Cogmind - Beta 16.1 @@@ ROGUE MODE // 2026.02.17 @ 00:27:47 Player: Rocket Result: Self-destructed Performance ------------- Evolutions (1) 500 Regions Visited (2) 400 Robots Destroyed (25) 125 Value Destroyed (605) 605 Prototype IDs (0) 0 Alien Tech Used (0) 0 Bonus (0) 0 TOTAL SCORE: 1630 Bonus ------- None Cogmind --------- Core Integrity 373/400 Matter 59/300 Energy 85/125 System Corruption 0% Temperature Cool (15) Movement Treading (160) Location -9/Materials Parts ------- > --- POWER (1) -------- Light Ion Engine > --- PROPULSION (2) --- Light Treads > --- UTILITY (4) ------ Small Storage Unit Improved Sensor Array Signal Interpreter Targeting Computer > --- WEAPON (2) ------- Light Cannon Light Cannon > --- INVENTORY (8) ---- Ion Engine Light Treads High-capacity Storage Unit High-capacity Matter Pod (26) Improved Sensor Array Particle Charger Light Armor Plating Shock Bomb Launcher Peak State ------------ > --- POWER ------------ Light Ion Engine > --- PROPULSION ------- Light Treads Light Treads > --- UTILITY ---------- Small Storage Unit Improved Sensor Array Signal Interpreter Targeting Computer > --- WEAPON ----------- Light Cannon Shock Bomb Launcher > --- INVENTORY -------- Ion Engine Light Treads High-capacity Storage Unit High-capacity Matter Pod Improved Sensor Array Particle Charger Light Armor Plating Light Cannon [Rating: 14] Favorites ----------- Power Ion Engine Engine Ion Engine Propulsion Light Treads Treads Light Treads Utility Small Storage Unit Device Improved Heat Sink Storage Small Storage Unit Processor Targeting Computer Weapon Light Cannon Energy Cannon Beam Cannon Ballistic Gun Light Assault Rifle Ballistic Cannon Light Cannon Launcher Shock Bomb Launcher Special Weapon Mining Laser Build | -11 -10 -9 ------- Run | Yrd Mat Mat Slots Evolved 2 | . . 2 Power . | . . . Propulsion . | . . . Utility 2 | . . 2 Weapon . | . . . Parts Attached 24 | 6 10 8 Power 3 | 1 1 1 Engine 3 | 1 1 1 Core . | . . . Reactor . | . . . Propulsion 4 | 2 1 1 Treads 4 | 2 1 1 Leg . | . . . Wheel . | . . . Hover . | . . . Flight . | . . . Utility 7 | 1 3 3 Device 3 | . 1 2 Storage 2 | 1 1 . Processor 2 | . 1 1 Hackware . | . . . Protection . | . . . Artifact . | . . . Weapon 10 | 2 5 3 Energy Gun . | . . . Energy Cannon 2 | . 2 . Ballistic Gun 2 | 2 . . Ballistic Cannon 4 | . 2 2 Launcher 1 | . . 1 Special Weapon 1 | . 1 . Impact Weapon . | . . . Slashing Weapon . | . . . Piercing Weapon . | . . . Special Melee Weapon . | . . . Unidentified Prototypes . | . . . Parts Lost 2 | . 1 1 Power . | . . . Propulsion 2 | . 1 1 Utility . | . . . Weapon . | . . . Highest Loss Streak 1 | . 1 1 To Critical Strikes . | . . . Average Backups 6 | 1 6 7 Power . | . 1 1 Propulsion . | . . . Utility 3 | . 3 3 Weapon 2 | . 2 2 Tool/Special . | . . . Unused Backups 12 | . 4 8 Power . | . . . Propulsion . | . . . Utility 8 | . 2 6 Weapon 3 | . 2 1 Tool/Special 1 | . . 1 Average Slot Usage (%) 95 | . 93 99 Engine 12 | . 14 11 Treads 24 | . 25 22 Device 10 | . 10 11 Storage 12 | . 14 11 Processor 8 | . . 21 Energy Cannon 3 | . 5 . Ballistic Gun 2 | . 4 . Ballistic Cannon 19 | . 17 22 Peak Build Rating 14 | 6 10 14 Average Rating 8 | 4 8 9 On Entrance 4 | . 6 7 Avg Prop Armor Cover (%) . | . . . Naked Turns . | . . . Heaviest Build 52 | 10 52 17 Greatest Support 40 | 40 40 40 Greatest Overweight (x) 1 | . 1 . Average Overweight (x) . | . . . Largest Inventory Capacity 20 | 8 20 8 Average Capacity 8 | 6 8 8 Most Carried 10 | 2 10 8 Average Carried 6 | 1 6 7 Final Capacity 8 | 8 8 8 Final Carried 8 | 2 8 8 Class Distribution -------------------- 100% | Mutant Dominant Class ---------------- Mutant | -10/Materials Mutant | -9/Materials Resources | -11 -10 -9 ----------- Run | Yrd Mat Mat Matter Collected 685 | 67 475 143 Remotely . | . . . Salvage Created 721 | . 641 80 Parts 48 | . 45 3 Haulers Intercepted 1 | . 1 . Recyclers Shooed . | . . . Parts Field Recycled . | . . . Retrieved Matter . | . . . Parts Self-Destructed . | . . . Prevented . | . . . Parts Restored . | . . . Kills | -11 -10 -9 ------- Run | Yrd Mat Mat Combat Hostiles Destroyed 16 | . 12 4 Guns 1 | . 1 . Cannons 15 | . 11 4 Classes Destroyed 10 | . 8 2 Worker 1 | . . 1 Builder 1 | . 1 . Tunneler 1 | . 1 . Hauler 1 | . 1 . Recycler 2 | . 2 . Operator 1 | . 1 . Watcher 2 | . 2 . Swarmer 3 | . 3 . Grunt 11 | . 9 2 Sentry 2 | . . 2 Best Kill Streak 6 | . 6 1 Combat Bots Only 4 | . 4 1 Max Kills in Single Turn 2 | . 2 1 Gunslinging . | . . . Exploded . | . . . Melee . | . . . Uniques/NPCs Destroyed . | . . . Combat | -11 -10 -9 -------- Run | Yrd Mat Mat Hostile Shots Fired 125 | . 65 60 Missed 38 | . 21 17 Hits 87 | . 44 43 Projectile 87 | . 44 43 Critical Strikes 1 | . . 1 Damage Taken 1027 | . 537 490 Core 74 | . 47 27 Absorbed by Shields . | . . . Core Remaining (%) 90 | 100 81 . Volleys Fired 88 | . 53 35 Largest 2 | . 2 2 Hottest 100 | . 100 60 Shots Fired 173 | . 104 69 Gun 29 | . 29 . Cannon 142 | . 74 68 Launcher 1 | . . 1 Special 1 | . 1 . Kinetic 128 | . 60 68 Thermal 44 | . 44 . Explosive . | . . . Electromagnetic 1 | . . 1 Robot Hit Streak 17 | . 17 11 Robot Miss Streak 3 | . 2 3 Penetration Max . | . . . Secondary Targets . | . . . Shots Hit Robots 101 | . 56 45 Core Hits 29 | . 22 7 Critical Kills . | . . . Critical Parts Destroyed . | . . . Critical Strikes 3 | . 1 2 Blast 3 | . 1 2 Melee Attacks . | . . . Impact . | . . . Slashing . | . . . Piercing . | . . . Sneak Attacks . | . . . Combat Hostiles . | . . . Follow-up Attacks . | . . . Damage Inflicted 1802 | . 955 847 Guns 103 | . 103 . Cannons 1660 | . 852 808 Explosions 39 | . . 39 Melee . | . . . Ramming . | . . . Kinetic 1268 | . 460 808 Thermal 495 | . 495 . Explosive . | . . . Electromagnetic 39 | . . 39 Impact . | . . . Slashing . | . . . Piercing . | . . . Highest Corruption . | . . . Average Corruption . | . . . Corruption Purged . | . . . Corruption Blocked . | . . . Overload Shots . | . . . Overflow Damage 4 | . . 4 Projectiles 4 | . . 4 Explosions . | . . . Melee . | . . . Knockbacks 9 | . 3 6 Impact . | . . . Kinetic 8 | . 3 5 Secondary 1 | . . 1 Self-Inflicted Damage 18 | . . 18 Shots 1 | . . 1 Rammed . | . . . Targets Rammed . | . . . Kicked . | . . . Crushed . | . . . Highest Temperature 364 | . 364 24 Average Temperature 75 | . 91 8 Received Heat Transfer 393 | . 255 138 Effects 2 | . 2 . Energy Bleed 1 | . 1 . Damage (minor) 1 | . 1 . Siege Activations . | . . . Martial Activations . | . . . Shielding Activations . | . . . Robots Disrupted . | . . . Combat Hostiles . | . . . Robots Corrupted . | . . . Combat Hostiles . | . . . Parts Fried . | . . . Impact Corruptions . | . . . Robots Melted . | . . . Combat Hostiles . | . . . Parts Melted 1 | . 1 . Heat Transferred 1036 | . 1036 . Parts Sabotaged . | . . . Parts Stolen . | . . . Parts Stripped . | . . . Power Chain Reactions . | . . . Alert | -11 -10 -9 ------- Run | Yrd Mat Mat Maximum Alert Level . | . . . Low Security (%) 100 | 100 100 100 Level 1 . | . . . Level 2 . | . . . Level 3 . | . . . Level 4 . | . . . Level 5 . | . . . High Security . | . . . Max Security . | . . . Peak Influence 136 | . 136 30 Initial 17 | . . 17 Average 33 | . 50 7 Influence Increases 494 | . 378 116 Destroy 0b10 Robot/C 320 | . 240 80 Destroy 0b10 Robot/NC 45 | . 40 5 Destroy Leader 96 | . 66 30 Successful Hack 15 | . 15 . Disable Machine 15 | . 15 . Destroy Structure 3 | . 2 1 Influence Decreases 494 | . 335 159 Entered New Map 26 | . . 26 Time Decay 458 | . 325 133 Lost Part 10 | . 10 . Squads Dispatched 5 | . 3 2 Investigation 3 | . 1 2 Extermination . | . . . Reinforcement 2 | . 2 . Assault . | . . . Garrison . | . . . Intercept . | . . . Searches Triggered . | . . . Construction Impeded . | . . . Haulers Reinforced . | . . . Active Scanning Responses . | . . . Cargo Convoy Interrupts . | . . . Stealth | -11 -10 -9 --------- Run | Yrd Mat Mat Distress Signals 2 | . . 2 Communications Jammed . | . . . Distress Signals . | . . . Times Spotted 35 | . 16 19 Peak Tracking Total 12 | . 3 12 Tactical Retreats . | . . . Traps | -11 -10 -9 ------- Run | Yrd Mat Mat Traps Triggered 3 | . 2 1 Indirectly . | . . . Trap Hack Attempts . | . . . Triggered . | . . . Disarmed . | . . . Reprogrammed . | . . . Reused . | . . . Traps Extracted . | . . . Installed . | . . . Triggered . | . . . Machines | -11 -10 -9 ---------- Run | Yrd Mat Mat Machines Disabled 2 | . 2 . Max in Single Turn 1 | . 1 . Machines Repaired . | . . . Machines Dismantled . | . . . Machines Sabotaged . | . . . Overloaded Fab Kills . | . . . Hacking | -11 -10 -9 --------- Run | Yrd Mat Mat Machines Accessed 4 | . 3 1 Terminals 3 | . 3 . Fabricators . | . . . Repair Stations . | . . . Recycling Units . | . . . Scanalyzers 1 | . . 1 Garrison Access . | . . . Total Hacks 8 | . 3 5 Successful 3 | . 2 1 Failed 4 | . 1 3 Catastrophic . | . . . Database Lockouts 1 | . . 1 Manual 3 | . 3 . Terminals 3 | . 3 . Fabricators . | . . . Repair Stations . | . . . Recycling Units . | . . . Scanalyzers 5 | . . 5 Garrison Access . | . . . Terminal Hacks 2 | . 2 . Registered Components 2 | . 2 . Fabricator Hacks . | . . . Repair Station Hacks . | . . . Recycling Unit Hacks . | . . . Scanalyzer 1 | . . 1 Retrieve Study 1 | . . 1 Garrison Access Hacks . | . . . Unauthorized Hacks . | . . . Terminals . | . . . Fabricators . | . . . Repair Stations . | . . . Recycling Units . | . . . Scanalyzers . | . . . Garrison Access . | . . . Data Cores Recovered . | . . . Used . | . . . Hacking Detections 2 | . 1 1 Full Trace Events 1 | . . 1 Feedback Events . | . . . Feedback Blocked . | . . . Robot Schematics Acquired . | . . . Robots Built . | . . . Authchips . | . . . Time . | . . . Total Robot Build Rating . | . . . Part Schematics Acquired . | . . . Parts Built . | . . . Authchips . | . . . Time . | . . . Total Part Build Rating . | . . . Part Studies Acquired 1 | . . 1 Parts Repaired . | . . . Time . | . . . Parts Recycled . | . . . Recycled Matter . | . . . Retrieved Matter . | . . . Retrieved Components . | . . . Parts Scanalyzed . | . . . Part Schematics Acquired . | . . . Parts Damaged . | . . . Bothacking | -11 -10 -9 ------------ Run | Yrd Mat Mat Used RIF Installer . | . . . Robots Hacked . | . . . Non-combat . | . . . Combat . | . . . Robot Hacks Applied . | . . . Relay Couplers Released . | . . . Fabnet Peak Effective % . | . . . Robots Rewired . | . . . Allies Hacked . | . . . Hacks Repelled . | . . . Allies | -11 -10 -9 -------- Run | Yrd Mat Mat Total Allies . | . . . Largest Group . | . . . Highest-Rated Group . | . . . Highest-Rated Ally . | . . . Total Orders . | . . . Ally Attacks . | . . . Total Damage . | . . . Kills . | . . . Allies Corrupted . | . . . Allies Melted . | . . . Intel | -11 -10 -9 ------- Run | Yrd Mat Mat Active Infowar (turns) 515 | . . 515 Sensors 515 | . . 515 Robot Analysis Total . | . . . Derelict Logs Recovered . | . . . Drone Launches . | . . . Drone Recoveries . | . . . Exploration | -11 -10 -9 ------------- Run | Yrd Mat Mat Turns Passed 1481 | 60 906 515 Spaces Moved 715 | 35 440 240 Core 5 | 5 . . Treads 710 | 30 440 240 Legs . | . . . Wheels . | . . . Hover . | . . . Flight . | . . . Fastest Speed 50 | 50 160 160 Average Speed 160 | 144 162 160 Slowest Speed 240 | 160 240 160 Overloaded Moves . | . . . Propulsion Burnouts . | . . . Robots Hopped . | . . . Potential Cave-ins . | . . . Cave-ins Triggered . | . . . Exploration Rate (%) 34 | 4 80 20 Regions Visited 2 Branch Regions . Pre-discovered Areas . | . . . Known Exits Taken . | . . . Unknown Exits Taken 2 | 1 1 . Scrap Searched . | . . . Spaces Dug . | . . . Terrain Destroyed . | . . . Melee . | . . . Projectile . | . . . AOE . | . . . Terrain Rammed . | . . . Walls Destroyed . | . . . Machines Disabled . | . . . Actions | -11 -10 -9 --------- Run | Yrd Mat Mat Total 880 | 42 535 303 Wait 10 | . 5 5 Move 713 | 34 439 240 Hop . | . . . Pick Up 21 | 2 12 7 Fast Attach 15 | 6 9 . Attach 2 | . . 2 Detach . | . . . Swap 11 | . 4 7 Drop 20 | . 13 7 Fire 88 | . 53 35 Melee . | . . . Ram . | . . . Kick . | . . . Crush . | . . . Escape Stasis . | . . . Rewire . | . . . Trap . | . . . Miscellaneous . | . . . Route ------- -11/Scrapyard -10/Materials (discovered 4 exits: *Mat x2 / [*Min] / [*Sub]) -9/Materials (discovered 1 exit: [*Mat]) History --------- Turn | Location | Event 5 | -11/Scrapyard | Discovered new exit (range 15) 61 | -11/Scrapyard | Entered Materials 303 | -10/Materials | Build established: Mutant 400 | -10/Materials | Discovered new exit (range 11) 533 | -10/Materials | Discovered new exit (range 12) 606 | -10/Materials | Discovered new exit (range 10) 909 | -10/Materials | Discovered new exit (range 16) 967 | -10/Materials | Entered another Materials area 967 | -9/Materials | Evolved 2 slots: Utility x2 1460 | -9/Materials | Central database locked down 1461 | -9/Materials | Discovered new exit (range 8) 1482 | -9/Materials | Self-destructed Last Messages --------------- 01419_ Dropped Sensor Array. 01426_ Dropped Lgt. Cannon. 01427_ Acquired Imp. Sensor Array. 01433_ Acquired Particle Charger. 01452_ K-01 Serf cleans the Scanalyzer. 01460_ Connecting with Scanalyzer... 01460_ Current location identified: Materials >>Study(Lgt. Treads) Identified Lgt. Treads... Downloading performance data... Effective improvements: Penalty/2 01460_ ALERT: Central database lockdown, local access denied. 01460_ ALERT: Suspicious activity at Scanalyzer M001. Dispatching Investigation squad. 01461_ EXIT=FOUND 01463_ K-01 Serf collects debris. 01472_ Door malfunctions. 01482_ Lgt. Treads+ destroyed. Map ----- +----------------------------------------------------+ | | | | | ?????????????????????????????????????????????????? | | #######??????????????????????????????????????????? | | #??????????????????????????????????????????? | | #??????????????????????????????????????????? | | ########???????????????????????????????????? | | ## #???????????????????????????????????? | | ## !! #???????????????????????????????????? | | """" ## !! #???????????????????????????????????? | | """" ## #?########????#?????????????????????? | | """" ## [#?#!!! ]]#??? #?????????????????????? | | = *%## ! #?# !!! ]#??? #?????????????????????? | | ##+##### #?#]] ! #??? #?????????????????????? | | #######+#### #### #?????????????????????? | | ! * % % #?????????????????????? | | T x #?????#???????????????? | | #######+###########+##+###? #???????????????? | | # ##?????# ?????## # < #???????????????? | | # #??????+% ?????# # #???????????????? | | + +??????# ?????## [[ g /x #???????????????? | | # #??????# ??????# [[ k # ????????? | | # #??????# [ ?????# [%g g"" #? ???????? | | # #??????# ?????# """#???= ?????????? | | # #???????###?????# S"#????? ??????????? | | # #???????????????# @ #???????????????????? | | # #???????????????######/####???????????????????? | | # ##???######??????????# #??????????????????????? | | ##### #??????????#s#??????????????????????? | | #########?? ??????????????????????? | | " ?? %??????????????????????? | | ##### ####???????s ??????????????????????? | | #####???## ##?????????? s??????????????????????? | | ?????????# #??????????? ??????????????????????? | | ?????????# #??????????? Y ??????????????????????? | | ?????????# #??????????# #?????????????????????? | | ?????????# #??????????+ #?????????????????????? | | ?????????# #??????????# #?????????????????????? | | ?????????# #??????????? s??????????????????????? | | ??######## #??????????? ??????????????????????? | | ??# # #??????????? ??????????????????????? | | ??# """ # #????????????????????????????????????? | | ??# """ # #???????????########?????????????????? | | ??# """ # #???????????# #?????????????????? | | ??# # #???????????# #?????????????????? | | ??# # #?????####### #?????????????????? | | ########+# ####### # #?????????????????? | | # #?????????????????? | | " + #?????????????????? | | # #?????????????????? | +----------------------------------------------------+ Best States ------------- Heat Dissipation 39 Energy Generation 10 Energy Capacity 250 Matter Stores 300 Matter Capacity 300 Sight Range 16 Robot Scan Range 15 Terrain Scan Density 10 Evasion (%) 40 Targeting Accuracy 5 Recoil Reduction 2 Item Schematics ----------------- None Robot Schematics ------------------ None Fabricated ------------ Nothing Repaired ---------- Nothing Studied --------- Lgt. Treads | -9/Materials | Hacked Alien Tech Used ----------------- None Achievements -------------- None Challenges ------------ None Game ------ Seed ImprovedMiniComputer Manual? 0 Play Time 00:10:31 Cumulative 88.6 hours Start 2026.02.17 @ 00:01:43 End 2026.02.17 @ 00:27:47 Sessions 1 Manual Loads 0 Difficulty Rogue Special Mode None Game No. 138 Rogue 138 Adventurer 0 Explorer 0 Win Type - Total 0 Types 0/0/0/0/0/0/0/0/0/0 Lore% 17 Gallery% 37 Achievement% 27 Wizard Run 0 Options --------- Layout 1 ASCII 0 Keyboard 0 Movement Mouse Keybinds 0 Fullscreen 2 Font 24/Smallcaps Map View 50x35 Zoom Use 47% Tactical HUD 1 Map Filters NONE Filters NONE Steam 1 RUN: dd33d2e8-a602-4106-908c-1c6c43e284d1